Cogmind - Beta 12 @@@ ROGUE MODE // 2023.04.26 @ 02:01:05 Player: Dytto Result: Destroyed by S-10 Pest with Light Assault Rifle Performance ------------- Evolutions (0) 0 Regions Visited (2) 400 Robots Destroyed (10) 50 Value Destroyed (100) 100 Prototype IDs (0) 0 Alien Tech Used (0) 0 Bonus (0) 0 TOTAL SCORE: 550 Bonus ------- None Cogmind --------- Core Integrity 0/250 Matter 405/450 Energy 349/350 System Corruption 0% Temperature Cool (0) Movement Core (150) Ox2 Location -10/Mines Parts ------- > --- POWER (1) -------- (None) > --- PROPULSION (2) --- (None) > --- UTILITY (2) ------ High-capacity Battery Large Matter Pod > --- WEAPON (2) ------- Light Assault Rifle > --- INVENTORY (5) ---- Ion Engine Aluminum Leg Beam Cannon Peak State ------------ > --- POWER ------------ Ion Engine > --- PROPULSION ------- Wheel Compact Wheel > --- UTILITY ---------- High-capacity Battery Large Matter Pod > --- WEAPON ----------- Medium Laser Beam Cannon > --- INVENTORY -------- Ion Engine Aluminum Leg Light Assault Rifle [Rating: 7] Favorites ----------- Power Ion Engine Engine Ion Engine Propulsion Compact Wheel Wheel Compact Wheel Utility Large Matter Pod Storage Large Matter Pod Weapon Medium Laser Energy Gun Medium Laser Energy Cannon Beam Cannon Ballistic Gun Light Assault Rifle Build | -11 -10 -10 ------- Run | Jun Mat Min Slots Evolved . | . . . Power . | . . . Propulsion . | . . . Utility . | . . . Weapon . | . . . Parts Attached 11 | 5 4 2 Power 1 | 1 . . Engine 1 | 1 . . Core . | . . . Reactor . | . . . Propulsion 2 | 2 . . Treads . | . . . Leg . | . . . Wheel 2 | 2 . . Hover . | . . . Flight . | . . . Utility 2 | . 2 . Device . | . . . Storage 2 | . 2 . Processor . | . . . Hackware . | . . . Protection . | . . . Artifact . | . . . Weapon 6 | 2 2 2 Energy Gun 4 | 2 1 1 Energy Cannon 1 | . 1 . Ballistic Gun 1 | . . 1 Ballistic Cannon . | . . . Launcher . | . . . Special Weapon . | . . . Impact Weapon . | . . . Slashing Weapon . | . . . Piercing Weapon . | . . . Special Melee Weapon . | . . . Unidentified Prototypes . | . . . Parts Lost 4 | . 1 3 Power 1 | . . 1 Propulsion 2 | . 1 1 Utility . | . . . Weapon 1 | . . 1 Highest Loss Streak 3 | . 1 3 To Critical Strikes . | . . . Average Slot Usage (%) 87 | . 90 76 Engine 13 | . 14 11 Wheel 22 | . 26 11 Storage 22 | . 21 28 Energy Gun 16 | . 18 11 Energy Cannon 7 | . 9 4 Ballistic Gun 2 | . . 9 Naked Turns . | . . . Heaviest Build 17 | 8 17 17 Greatest Support 26 | 26 26 16 Greatest Overweight (x) 3 | 1 1 3 Average Overweight (x) . | . . . Largest Inventory Capacity 5 | 5 5 5 Average Capacity 5 | 5 5 5 Most Carried 5 | 2 5 3 Average Carried 2 | . 2 3 Final Capacity 5 | 5 5 5 Final Carried 3 | 2 3 3 Class Distribution -------------------- 100% | Mutant Dominant Class ---------------- Mutant | -10/Materials Mutant | -10/Mines Resources | -11 -10 -10 ----------- Run | Jun Mat Min Matter Collected 402 | 199 159 44 Remotely . | . . . Salvage Created 154 | . 92 62 Parts 19 | . 11 8 Haulers Intercepted . | . . . Recyclers Shooed . | . . . Parts Field Recycled . | . . . Retrieved Matter . | . . . Parts Self-Destructed . | . . . Prevented . | . . . Kills | -11 -10 -10 ------- Run | Jun Mat Min Combat Hostiles Destroyed 10 | . 6 4 Guns 8 | . 6 2 Cannons 2 | . . 2 Classes Destroyed 1 | . 1 . Swarmer 10 | . 6 4 Best Kill Streak 3 | . 3 3 Combat Bots Only 3 | . 3 3 Max Kills in Single Turn 1 | . 1 1 Gunslinging . | . . . Exploded . | . . . Melee . | . . . Uniques/NPCs Destroyed . | . . . Combat | -11 -10 -10 -------- Run | Jun Mat Min Damage Taken 625 | . 275 350 Core 257 | . 108 149 Absorbed by Shields . | . . . Core Remaining (%) 100 | 100 . . Volleys Fired 26 | . 11 15 Largest 2 | . 2 2 Hottest 110 | . 110 110 Shots Fired 45 | . 22 23 Gun 32 | . 17 15 Cannon 13 | . 5 8 Launcher . | . . . Special . | . . . Kinetic 7 | . . 7 Thermal 38 | . 22 16 Explosive . | . . . Electromagnetic . | . . . Robot Hit Streak 4 | . 4 1 Robot Miss Streak 7 | . 3 7 Penetration Max . | . . . Secondary Targets . | . . . Shots Hit Robots 14 | . 11 3 Core Hits 10 | . 6 4 Critical Kills . | . . . Critical Parts Destroyed . | . . . Critical Strikes 1 | . 1 . Burn 1 | . 1 . Melee Attacks . | . . . Impact . | . . . Slashing . | . . . Piercing . | . . . Sneak Attacks . | . . . Combat Hostiles . | . . . Follow-up Attacks . | . . . Damage Inflicted 209 | . 140 69 Guns 158 | . 123 35 Cannons 51 | . 17 34 Explosions . | . . . Melee . | . . . Ramming . | . . . Kinetic 10 | . . 10 Thermal 199 | . 140 59 Explosive . | . . . Electromagnetic . | . . . Impact . | . . . Slashing . | . . . Piercing . | . . . Highest Corruption . | . . . Average Corruption . | . . . Corruption Purged . | . . . Corruption Blocked . | . . . Overload Shots . | . . . Overflow Damage . | . . . Projectiles . | . . . Explosions . | . . . Melee . | . . . Knockbacks . | . . . Impact . | . . . Kinetic . | . . . Secondary . | . . . Self-Inflicted Damage . | . . . Shots . | . . . Rammed . | . . . Targets Rammed . | . . . Kicked . | . . . Crushed . | . . . Highest Temperature 304 | . 160 304 Average Temperature 113 | . 79 155 Received Heat Transfer 33 | . 33 . Siege Activations . | . . . Robots Corrupted . | . . . Combat Hostiles . | . . . Parts Fried . | . . . Impact Corruptions . | . . . Robots Melted . | . . . Combat Hostiles . | . . . Parts Melted 2 | . 2 . Heat Transferred 581 | . 433 148 Parts Sabotaged . | . . . Parts Stolen . | . . . Parts Stripped . | . . . Power Chain Reactions . | . . . Missiles Intercepted . | . . . Alert | -11 -10 -10 ------- Run | Jun Mat Min Peak Influence 202 | . 202 159 Initial 74 | . . 74 Average 101 | . 109 143 Maximum Alert Level 1 | . 1 . Low Security (%) 95 | 100 93 100 Level 1 4 | . 6 . Level 2 . | . . . Level 3 . | . . . Level 4 . | . . . Level 5 . | . . . High Security . | . . . Max Security . | . . . Squads Dispatched 1 | . 1 . Investigation . | . . . Extermination . | . . . Reinforcement 1 | . 1 . Assault . | . . . Garrison . | . . . Intercept . | . . . Searches Triggered . | . . . Construction Impeded . | . . . Haulers Reinforced . | . . . Active Scanning Responses . | . . . Cargo Convoy Interrupts . | . . . Stealth | -11 -10 -10 --------- Run | Jun Mat Min Distress Signals 2 | . 2 . Communications Jammed . | . . . Distress Signals . | . . . Times Spotted 21 | . 15 6 Peak Tracking Total 5 | . 5 3 Tactical Retreats 1 | . 1 . Traps | -11 -10 -10 ------- Run | Jun Mat Min Traps Triggered . | . . . Indirectly . | . . . Trap Hack Attempts . | . . . Triggered . | . . . Disarmed . | . . . Reprogrammed . | . . . Reused . | . . . Traps Extracted . | . . . Installed . | . . . Triggered . | . . . Machines | -11 -10 -10 ---------- Run | Jun Mat Min Machines Disabled . | . . . Max in Single Turn . | . . . Machines Repaired . | . . . Machines Sabotaged . | . . . Overloaded Fab Kills . | . . . Hacking | -11 -10 -10 --------- Run | Jun Mat Min Machines Accessed 1 | . 1 . Terminals 1 | . 1 . Fabricators . | . . . Repair Stations . | . . . Recycling Units . | . . . Scanalyzers . | . . . Garrison Access . | . . . Total Hacks 2 | . 2 . Successful 1 | . 1 . Failed 1 | . 1 . Catastrophic . | . . . Database Lockouts . | . . . Manual . | . . . Terminals 2 | . 2 . Fabricators . | . . . Repair Stations . | . . . Recycling Units . | . . . Scanalyzers . | . . . Garrison Access . | . . . Terminal Hacks 1 | . 1 . Record 1 | . 1 . Fabricator Hacks . | . . . Repair Station Hacks . | . . . Recycling Unit Hacks . | . . . Scanalyzer . | . . . Garrison Access Hacks . | . . . Unauthorized Hacks . | . . . Terminals . | . . . Fabricators . | . . . Repair Stations . | . . . Recycling Units . | . . . Scanalyzers . | . . . Garrison Access . | . . . Data Cores Recovered . | . . . Used . | . . . Hacking Detections 1 | . 1 . Full Trace Events . | . . . Feedback Events . | . . . Feedback Blocked . | . . . Robot Schematics Acquired . | . . . Robots Built . | . . . Authchips . | . . . Time . | . . . Total Robot Build Rating . | . . . Part Schematics Acquired . | . . . Parts Built . | . . . Authchips . | . . . Time . | . . . Total Part Build Rating . | . . . Parts Repaired . | . . . Time . | . . . Parts Recycled . | . . . Recycled Matter . | . . . Retrieved Matter . | . . . Retrieved Components . | . . . Parts Scanalyzed . | . . . Part Schematics Acquired . | . . . Parts Damaged . | . . . Bothacking | -11 -10 -10 ------------ Run | Jun Mat Min Used RIF Installer . | . . . Robots Hacked . | . . . Non-combat . | . . . Combat . | . . . Robot Hacks Applied . | . . . Relay Couplers Released . | . . . Fabnet Peak Effective % . | . . . Robots Rewired . | . . . Allies Hacked . | . . . Hacks Repelled . | . . . Allies | -11 -10 -10 -------- Run | Jun Mat Min Total Allies . | . . . Largest Group . | . . . Highest-Rated Group . | . . . Highest-Rated Ally . | . . . Total Orders . | . . . Ally Attacks . | . . . Total Damage . | . . . Kills . | . . . Allies Corrupted . | . . . Allies Melted . | . . . Intel | -11 -10 -10 ------- Run | Jun Mat Min Robot Analysis Total . | . . . Derelict Logs Recovered . | . . . Drone Launches . | . . . Drone Recoveries . | . . . Exploration | -11 -10 -10 ------------- Run | Jun Mat Min Turns Passed 474 | 64 312 98 Spaces Moved 383 | 64 265 54 Core 16 | 8 . 8 Treads . | . . . Legs . | . . . Wheels 367 | 56 265 46 Hover . | . . . Flight . | . . . Fastest Speed 50 | 50 90 100 Average Speed 93 | 86 92 109 Slowest Speed 200 | 100 115 200 Overloaded Moves . | . . . Propulsion Burnouts . | . . . Robots Hopped . | . . . Cave-ins Triggered . | . . . Exploration Rate (%) 24 | 3 54 16 Regions Visited 2 Branch Regions 1 Pre-discovered Areas . | . . . Known Exits Taken . | . . . Unknown Exits Taken 2 | 1 1 . Scrap Searched . | . . . Spaces Dug . | . . . Terrain Destroyed . | . . . Melee . | . . . Projectile . | . . . AOE . | . . . Terrain Rammed . | . . . Walls Destroyed . | . . . Machines Disabled . | . . . Actions | -11 -10 -10 --------- Run | Jun Mat Min Total 451 | 70 310 71 Wait 27 | . 27 . Move 381 | 63 264 54 Hop . | . . . Pick Up 4 | 2 2 . Fast Attach 7 | 5 2 . Attach 2 | . 2 . Detach 1 | . 1 . Swap 2 | . . 2 Drop 1 | . 1 . Fire 26 | . 11 15 Melee . | . . . Ram . | . . . Kick . | . . . Crush . | . . . Escape Stasis . | . . . Rewire . | . . . Trap . | . . . Miscellaneous . | . . . Route ------- -11/Junkyard -10/Materials -10/Mines (discovered 1 exit: [*Mat]) History --------- Turn | Location | Event 19 | -11/Junkyard | Discovered new exit (range 16) 65 | -11/Junkyard | Entered Materials 304 | -10/Materials | Build established: Mutant 364 | -10/Materials | Discovered new exit (range 9) 377 | -10/Materials | Entered Mines 388 | -10/Mines | Core integrity fell below 50% 450 | -10/Mines | Discovered new exit (range 10) 465 | -10/Mines | Core integrity fell below 20% 475 | -10/Mines | Destroyed by S-10 Pest with Light Assault Rifle Last Messages --------------- M007. 00301_ O-16 Technician locks terminal. 00307_ W-16 Scout sends out distress signal. 00349_ Wheel destroyed. 00364_ EXIT=FOUND LOCATION=UNKNOWN GOAL=ESCAPE Something is scanning the area. 00382_ S-10 Pest destroyed. 00411_ Acquired 15 matter. 00412_ Acquired 11 matter. 00413_ Acquired 18 matter. 00414_ R-06 Scavenger collects Flight Unit. 00417_ R-06 Scavenger collects Lgt. Assault Rifle. 00419_ R-06 Scavenger collects Flight Unit. 00450_ EXIT=FOUND 00451_ Ion Engine destroyed. 00451_ Com. Wheel destroyed. 00453_ Med. Laser destroyed. 00458_ S-10 Pest destroyed. Map ----- +----------------------------------------------------+ | ????????????####??###??????????????? | | ????######### ### ###????????????? | | ???# ##???????????? | | ?????####### #???????????? | | ??## ####### ############? | | ?# ## #? | | ### #? | | ### ##### ##?# #? | | ??????#?????##### ##??# ! #? | | ????????????????# ##???# !! #? | | ????????????????# #????# ! #? | | ????????????????# #????# !! #? | | ????????????????# #????# #? | | ????????????????# #????# #? | | ????????????????# ###### #? | | ????????????????# # #? | | ????????????????###### ### #####???? | | ?????????????????????# #?# #???????? | | ?????????????????????# ### #???????? | | ?????????????????????# #???????? | | ???????????????????####### #???????? | | ??????????????????## ##?# #???????? | | ??????????# ####### ### #???????? | | ??????????# s ##??????? | | ??????????# [%= ##?????? | | ??????????????# < = s @ #?????? | | ??????????????# #?????? | | ??????????????## ## ## ##?????? | | ???????????????######?# ## #??????? | | ??????????????????????# ## #??????? | | ??????????????????????# ## #??????? | | ?????????????????????? #??????? | | ?????????????????????? #??????? | | ??????????????????????#######??????? | | ???????????????????????????????????? | | ???????????????????????????????????? | | ???????????????????????????????????? | | ???????????????????????????????????? | | ???????????????????????????????????? | | ???????????????????????????????????? | | ???????????????????????????????????? | | ???????????????????????????????????? | | ???????????????????????????????????? | | ???????????????????????????????????? | | ???????????????????????????????????? | | ???????????????????????????????????? | | ???????????????????????????????????? | | ???????????????????????????????????? | | ???????????????????????????????????? | | ???????????????????????????????????? | +----------------------------------------------------+ Best States ------------- Heat Dissipation 25 Energy Generation 10 Energy Capacity 500 Matter Stores 411 Matter Capacity 450 Sight Range 16 Terrain Scan Density 10 Evasion (%) 42 Item Schematics ----------------- None Robot Schematics ------------------ None Fabricated ------------ Nothing Alien Tech Used ----------------- None Achievements -------------- None Challenges ------------ None Game ------ Seed ElectronShockMicrothruster Manual? 0 Play Time 00:05:28 Cumulative 20.7 hours Start 2023.04.26 @ 01:56:41 End 2023.04.26 @ 02:01:05 Sessions 1 Manual Loads 0 Difficulty Rogue Special Mode None Game No. 80 Rogue 44 Adventurer 36 Explorer 0 Win Type - Total 0 Types 0/0/0/0/0/0/0/0/0 Lore% 15 Gallery% 21 Achievement% 15 Wizard Run 0 Options --------- ASCII 0 Keyboard 1 Movement Numpad Keybinds 0 Fullscreen 2 Font 18/X11Bold Map View 76x50 Tactical HUD 1 Map Filters NONE Filters NONE Steam 1 RUN: c86959fe-8b79-4231-b862-75342b301d7f